fUST/lending_fUST_20241220
["ID","MTS","AMOUNT","RATE_DAILY","PERIOD"]
[346085237,1734695460778,-500.0,0.00024109,6]
[346085238,1734695460788,-500.0,0.00024109,6]
[346085239,1734695460798,-500.0,0.00024109,6]
[346085240,1734695460808,-500.0,0.00024109,6]
[346085241,1734695460818,-710.49,0.00024109,6]
[346085242,1734695460828,-500.0,0.00024109,6]
[346085243,1734695460838,-1045.23,0.00024109,6]
[346085244,1734695460848,-659.67,0.00024109,6]
[346085245,1734695460858,-10652.65,0.00024109,6]
[346085246,1734695460868,-500.0,0.00024109,6]
[346085247,1734695460878,-500.0,0.00024109,6]
[346085248,1734695460888,-188.06297849,0.00024109,6]
[346085249,1734695460898,-500.0,0.00024109,6]
[346085250,1734695460909,-500.0,0.00024109,6]
[346085251,1734695460919,-500.0,0.00024109,6]
[346085252,1734695460929,-564.57,0.00024109,6]
[346085253,1734695460940,-500.0,0.00024109,6]
[346085254,1734695460950,-1659.22,0.00024109,6]
[346085255,1734695460961,-500.0,0.00024109,6]
[346085256,1734695460972,-2623.57,0.00024109,6]
[346085257,1734695460989,-3774.55,0.00024109,6]
[346085258,1734695461000,-2715.88,0.00024109,2]
[346085259,1734695461011,-500.0,0.00024109,6]
[346085260,1734695461023,-500.0,0.00024109,6]
[346085261,1734695461034,-2144.16,0.00024109,6]
[346085262,1734695461045,-735.95,0.00024109,6]
[346085263,1734695461056,-500.0,0.00024109,6]
[346085264,1734695461067,-1503.77,0.00024109,6]
[346085265,1734695461077,-635.66,0.00024109,6]
[346085266,1734695461087,-1406.33,0.00024109,6]
[346085267,1734695461098,-1377.63,0.00024109,6]
[346085268,1734695461110,-1700.87,0.00024109,6]
[346085269,1734695461120,-648.56,0.00024109,6]
[346085270,1734695461131,-594.82,0.00024109,6]
[346085271,1734695461141,-679.09,0.00024109,6]
[346085272,1734695461151,-500.0,0.00024109,6]
[346085273,1734695461161,-500.0,0.00024109,6]
[346085274,1734695461172,-1820.66,0.00024109,6]
[346085275,1734695461182,-500.0,0.00024109,6]
[346085276,1734695461194,-656.63,0.00024109,6]
[346085277,1734695461204,-500.0,0.00024109,6]
[346085278,1734695461214,-510.72,0.00024109,6]
[346085279,1734695461223,-500.0,0.00024109,6]
[346085280,1734695461241,-983.9,0.00024109,6]
[346085281,1734695461251,-3397.33,0.00024109,6]
[346085282,1734695461261,-557.8,0.00024109,6]
[346085283,1734695461271,-500.0,0.00024109,6]
[346085284,1734695461283,-500.0,0.00024109,6]
[346085285,1734695461293,-688.72,0.00024109,6]
[346085286,1734695461303,-500.0,0.00024109,6]
[346085287,1734695461314,-500.0,0.00024109,6]
[346085288,1734695461326,-870.15,0.00024109,6]
[346085289,1734695461336,-500.0,0.00024109,6]
[346085290,1734695461346,-329.36031173,0.00024176,2]
[346085291,1734695461356,-466.86856799,0.00024261,2]
[346085292,1734695461369,-500.0,0.00024383,6]
[346085293,1734695461380,-500.0,0.00024383,6]
[346085294,1734695461390,-188.49635885,0.00024383,6]
[346085295,1734695461400,-500.0,0.00024383,6]
[346085296,1734695461410,-500.0,0.00024383,6]
[346085297,1734695461420,-500.0,0.00024383,6]
[346085298,1734695461430,-500.0,0.00024383,6]
[346085299,1734695461440,-500.0,0.00024383,6]
[346085300,1734695461450,-500.0,0.00024383,6]
[346085301,1734695461460,-500.0,0.00024383,6]
[346085302,1734695461470,-500.0,0.00024383,6]
[346085303,1734695461486,-447.99827925,0.00024383,6]
[346085304,1734695461496,-500.0,0.00024383,6]
[346085305,1734695461506,-505.64,0.00024383,6]
[346085306,1734695461516,-500.0,0.00024383,6]
[346085307,1734695461526,-500.0,0.00024383,6]
[346085308,1734695461536,-500.0,0.00024383,6]
[346085309,1734695461546,-500.0,0.00024383,6]
[346085310,1734695461556,-792.84,0.00024383,6]
[346085311,1734695461567,-500.0,0.00024383,6]
[346085312,1734695461577,-500.0,0.00024383,6]
[346085313,1734695461587,-666.3,0.00024383,6]
[346085314,1734695461597,-500.0,0.00024383,6]
[346085315,1734695461607,-500.0,0.00024383,6]
[346085316,1734695461617,-500.0,0.00024383,6]
[346085317,1734695461627,-500.0,0.00024383,6]
[346085318,1734695461638,-546.14,0.00024383,6]
[346085319,1734695461648,-500.0,0.00024383,6]
[346085320,1734695461658,-1569.66,0.00024383,6]
[346085321,1734695461668,-1153.1,0.00024383,6]
[346085322,1734695461679,-500.0,0.00024383,6]
[346085323,1734695461689,-825.59,0.00024383,6]
[346085324,1734695461699,-168.0,0.00024383,6]
[346085325,1734695461709,-500.0,0.00024383,6]
[346085326,1734695461719,-909.44,0.00024383,6]
[346085327,1734695461734,-661.6,0.00024383,6]
[346085328,1734695461744,-500.0,0.00024383,6]
[346085329,1734695461755,-500.0,0.00024383,6]
[346085330,1734695461765,-1058.73,0.00024383,6]
[346085331,1734695461776,-500.0,0.00024383,6]
[346085332,1734695461786,-500.0,0.00024383,6]
[346085333,1734695461797,-742.68,0.00024383,6]
[346085334,1734695461808,-500.0,0.00024383,6]
[346085335,1734695461822,-598.99,0.00024383,6]
[346085336,1734695461834,-504.49522438,0.00024383,6]
[346085337,1734695461848,-500.0,0.00024383,6]
[346085338,1734695461861,-500.0,0.00024383,6]
[346085339,1734695461875,-711.99,0.00024383,6]
[346085340,1734695461887,-500.0,0.00024383,6]
[346085341,1734695461897,-500.0,0.00024383,6]
[346085342,1734695461907,-500.0,0.00024383,6]
[346085343,1734695461920,-500.0,0.00024383,6]
[346085344,1734695461932,-1097.79,0.00024383,6]
[346085345,1734695461943,-500.0,0.00024383,6]
[346085346,1734695461955,-674.85,0.00024383,6]
[346085347,1734695461967,-739.83,0.00024383,6]
[346085348,1734695461983,-500.0,0.00024383,6]
[346085349,1734695461995,-1008.24,0.00024383,6]
[346085350,1734695462007,-500.0,0.00024383,6]
[346085351,1734695462020,-500.0,0.00024383,6]
[346085352,1734695462033,-500.0,0.00024383,6]
[346085353,1734695462046,-1499.78,0.00024383,2]
[346085354,1734695462057,-500.0,0.00024383,6]
[346085355,1734695462068,-500.0,0.00024383,6]
[346085356,1734695462080,-1582.09,0.00024383,6]
[346085357,1734695462091,-954.11,0.00024383,6]
[346085358,1734695462103,-500.0,0.00024383,6]
[346085359,1734695462116,-1591.5,0.00024383,6]
[346085360,1734695462128,-625.41,0.00024383,6]
[346085361,1734695462139,-974.47,0.00024383,6]
[346085362,1734695462151,-891.65,0.00024383,6]
[346085363,1734695462161,-940.38,0.00024383,6]
[346085364,1734695462171,-500.0,0.00024383,6]
[346085365,1734695462183,-500.0,0.00024383,6]
[346085366,1734695462197,-500.0,0.00024383,6]
[346085367,1734695462209,-500.0,0.00024383,6]
[346085368,1734695462221,-500.0,0.00024383,6]
[346085369,1734695462237,-1059.47,0.00024383,6]
[346085370,1734695462248,-500.0,0.00024383,6]
[346085371,1734695462261,-1737.43,0.00024383,6]
[346085372,1734695462274,-8856.88,0.00024383,6]
[346085373,1734695462286,-1259.63,0.00024383,6]
[346085374,1734695462298,-604.9,0.00024383,6]
[346085375,1734695462310,-500.0,0.00024383,6]
[346085376,1734695462323,-500.0,0.00024383,6]
[346085377,1734695462335,-350.0,0.00024383,2]
[346085378,1734695462345,-26119.07,0.00024383,6]
[346085379,1734695462356,-12484.53,0.00024383,6]
[346085380,1734695462366,-6479.93,0.00024383,6]
[346085381,1734695462376,-500.0,0.00024383,6]
[346085382,1734695462387,-500.0,0.00024383,6]
[346085383,1734695462400,-872.14,0.00024383,6]
[346085384,1734695462413,-349.93661904,0.00024383,6]
[346085385,1734695462425,-500.0,0.00024383,6]
[346085386,1734695462437,-500.0,0.00024383,6]
[346085387,1734695462448,-381.3857056,0.00024383,6]
[346085388,1734695462458,-1760.75,0.00024383,6]
[346085389,1734695462469,-500.0,0.00024383,6]
[346085390,1734695462483,-500.0,0.00024383,6]
[346085391,1734695462495,-6293.53,0.00024383,6]
[346085392,1734695462508,-500.0,0.00024383,6]
[346085393,1734695462518,-1957.09,0.00024383,6]
[346085394,1734695462528,-500.0,0.00024383,6]
[346085395,1734695462539,-233.81078277,0.00024383,6]
[346085396,1734695462549,-3441.37,0.00024383,6]
[346085397,1734695462560,-1705.94,0.00024383,6]
[346085398,1734695462571,-500.0,0.00024383,6]
[346085399,1734695462582,-1606.97,0.00024383,6]
[346085400,1734695462592,-500.0,0.00024383,6]
[346085401,1734695462603,-500.0,0.00024383,6]
[346085402,1734695462614,-500.0,0.00024383,6]
[346085403,1734695462624,-500.0,0.00024383,6]
[346085404,1734695462635,-500.0,0.00024383,6]
[346085405,1734695462645,-710.49,0.00024383,6]
[346085406,1734695462656,-500.0,0.00024383,6]
[346085407,1734695462666,-1045.23,0.00024383,6]
[346085408,1734695462677,-659.67,0.00024383,6]
[346085409,1734695462687,-10652.65,0.00024383,6]
[346085410,1734695462698,-500.0,0.00024383,6]
[346085411,1734695462709,-500.0,0.00024383,6]
[346085412,1734695462720,-552.91953825,0.00024383,6]
[346085413,1734695462733,-500.0,0.00024383,6]
[346085414,1734695462744,-500.0,0.00024383,6]
[346085415,1734695462755,-564.57,0.00024383,6]
[346085416,1734695462767,-500.0,0.00024383,6]
[346085417,1734695462778,-1659.22,0.00024383,6]
[346085418,1734695462789,-500.0,0.00024383,6]
[346085419,1734695462801,-2623.57,0.00024383,6]
[346085420,1734695462812,-3774.55,0.00024383,6]
[346085421,1734695462823,-2715.88,0.00024383,2]
[346085422,1734695462834,-500.0,0.00024383,6]
[346085423,1734695462845,-500.0,0.00024383,6]
[346085424,1734695462855,-2144.16,0.00024383,6]
[346085425,1734695462866,-735.95,0.00024383,6]
[346085426,1734695462877,-500.0,0.00024383,6]
[346085427,1734695462888,-1503.77,0.00024383,6]
[346085428,1734695462899,-635.66,0.00024383,6]
[346085429,1734695462911,-1406.33,0.00024383,6]
[346085430,1734695462924,-1377.63,0.00024383,6]
[346085431,1734695462934,-1700.87,0.00024383,6]
[346085432,1734695462945,-648.56,0.00024383,6]
[346085433,1734695462955,-594.82,0.00024383,6]
[346085434,1734695462966,-679.09,0.00024383,6]
[346085435,1734695462978,-500.0,0.00024383,6]
[346085436,1734695462993,-497.96379209,0.00024383,6]
[346085437,1734695463004,-1820.66,0.00024383,6]
[346085438,1734695463016,-500.0,0.00024383,6]
[346085439,1734695463027,-656.63,0.00024383,6]
[346085440,1734695463039,-500.0,0.00024383,6]
[346085441,1734695463051,-510.72,0.00024383,6]
[346085442,1734695463063,-500.0,0.00024383,6]
[346085443,1734695463077,-983.9,0.00024383,6]
[346085444,1734695463088,-3397.33,0.00024383,6]
[346085445,1734695463099,-557.8,0.00024383,6]
[346085446,1734695463110,-500.0,0.00024383,6]
[346085447,1734695463121,-500.0,0.00024383,6]
[346085448,1734695463133,-688.72,0.00024383,6]
[346085449,1734695463144,-500.0,0.00024383,6]
[346085450,1734695463155,-500.0,0.00024383,6]
[346085451,1734695463166,-870.15,0.00024383,6]
[346085452,1734695463178,-500.0,0.00024383,6]
[346085453,1734695463189,-10305.20533882,0.0002441,2]
[346085454,1734695463202,-466.86856799,0.00024415,2]
[346085455,1734695463214,-204.5187448,0.00024457,2]
[346085456,1734695463225,-2500.0,0.00024499,3]
[346085457,1734695463241,-37535.00000001,0.000245,2]
[346085458,1734695463253,-329.36031173,0.00024569,2]
[346085459,1734695463264,-466.86856799,0.00024569,2]
[346085460,1734695463277,-500.0,0.00024657,6]
[346085461,1734695463287,-500.0,0.00024657,6]
[346085462,1734695463298,-500.0,0.00024657,6]
[346085463,1734695463309,-500.0,0.00024657,6]
[346085464,1734695463320,-500.0,0.00024657,6]
[346085465,1734695463331,-500.0,0.00024657,6]
[346085466,1734695463343,-500.0,0.00024657,6]
[346085467,1734695463354,-1248.94,0.00024657,11]
[346085468,1734695463365,-500.0,0.00024657,6]
[346085469,1734695463376,-500.0,0.00024657,6]
[346085470,1734695463387,-500.0,0.00024657,6]
[346085471,1734695463398,-500.0,0.00024657,6]
[346085472,1734695463410,-505.64,0.00024657,6]
[346085473,1734695463422,-500.0,0.00024657,6]
[346085474,1734695463439,-500.0,0.00024657,6]
[346085475,1734695463452,-500.0,0.00024657,6]
[346085476,1734695463464,-627.75930624,0.00024657,6]
[346085477,1734695463476,-792.84,0.00024657,6]
[346085478,1734695463494,-500.0,0.00024657,6]
[346085479,1734695463506,-500.0,0.00024657,6]
[346085480,1734695463518,-666.3,0.00024657,6]
[346085481,1734695463529,-500.0,0.00024657,6]
[346085482,1734695463541,-500.0,0.00024657,6]
[346085483,1734695463552,-500.0,0.00024657,6]
[346085484,1734695463564,-500.0,0.00024657,6]
[346085485,1734695463575,-546.14,0.00024657,6]
[346085486,1734695463587,-500.0,0.00024657,6]
[346085487,1734695463598,-1569.66,0.00024657,6]
[346085488,1734695463609,-1153.1,0.00024657,6]
[346085489,1734695463619,-500.0,0.00024657,6]
[346085490,1734695463630,-825.59,0.00024657,6]
[346085491,1734695463641,-168.0,0.00024657,6]
[346085492,1734695463652,-500.0,0.00024657,6]
[346085493,1734695463663,-909.44,0.00024657,6]
[346085494,1734695463674,-661.6,0.00024657,6]
[346085495,1734695463685,-500.0,0.00024657,6]
[346085496,1734695463695,-500.0,0.00024657,6]
[346085497,1734695463706,-1058.73,0.00024657,6]
[346085498,1734695463720,-500.0,0.00024657,6]
[346085499,1734695463735,-500.0,0.00024657,6]
[346085500,1734695463749,-742.68,0.00024657,6]
[346085501,1734695463761,-500.0,0.00024657,6]
[346085502,1734695463776,-598.99,0.00024657,6]
[346085503,1734695463790,-500.0,0.00024657,6]
[346085504,1734695463802,-500.0,0.00024657,6]
[346085505,1734695463813,-711.99,0.00024657,6]
[346085506,1734695463826,-500.0,0.00024657,6]
[346085507,1734695463837,-500.0,0.00024657,6]
[346085508,1734695463850,-500.0,0.00024657,6]
[346085509,1734695463862,-1097.79,0.00024657,6]
[346085510,1734695463873,-500.0,0.00024657,6]
[346085511,1734695463885,-674.85,0.00024657,6]
[346085512,1734695463896,-739.83,0.00024657,6]
[346085513,1734695463907,-500.0,0.00024657,6]
[346085514,1734695463918,-1008.24,0.00024657,6]
[346085515,1734695463929,-500.0,0.00024657,6]
[346085516,1734695463940,-500.0,0.00024657,6]
[346085517,1734695463951,-500.0,0.00024657,6]
[346085518,1734695463963,-1499.78,0.00024657,2]
[346085519,1734695463974,-500.0,0.00024657,6]
[346085520,1734695463993,-500.0,0.00024657,6]
[346085521,1734695464004,-1582.09,0.00024657,6]
[346085522,1734695464015,-954.11,0.00024657,6]
[346085523,1734695464027,-500.0,0.00024657,6]
[346085524,1734695464038,-1591.5,0.00024657,6]
[346085525,1734695464050,-625.41,0.00024657,6]
[346085526,1734695464062,-974.47,0.00024657,6]
[346085527,1734695464074,-891.65,0.00024657,6]
[346085528,1734695464086,-940.38,0.00024657,6]
[346085529,1734695464097,-500.0,0.00024657,6]
[346085530,1734695464108,-500.0,0.00024657,6]
[346085531,1734695464120,-467.4660316,0.00024657,6]
[346085532,1734695464132,-500.0,0.00024657,6]
[346085533,1734695464144,-500.0,0.00024657,6]
[346085534,1734695464158,-1059.47,0.00024657,6]
[346085535,1734695464169,-604.38298282,0.00024657,6]
[346085536,1734695464179,-1737.43,0.00024657,6]
[346085537,1734695464192,-8856.88,0.00024657,6]
[346085538,1734695464206,-1259.63,0.00024657,6]
[346085539,1734695464216,-604.9,0.00024657,6]
[346085540,1734695464227,-500.0,0.00024657,6]
[346085541,1734695464247,-319.63155427,0.00024657,6]
[346085542,1734695464257,-350.0,0.00024657,2]
[346085543,1734695464268,-26119.07,0.00024657,6]
[346085544,1734695464281,-12484.53,0.00024657,6]
[346085545,1734695464292,-6479.93,0.00024657,6]
[346085546,1734695464302,-500.0,0.00024657,6]
[346085547,1734695464313,-500.0,0.00024657,6]
[346085548,1734695464324,-872.14,0.00024657,6]
[346085549,1734695464336,-500.0,0.00024657,6]
[346085550,1734695464626,-500.0,0.00024657,6]
[346085551,1734695464638,-1760.75,0.00024657,6]
[346085552,1734695464648,-500.0,0.00024657,6]
[346085553,1734695464657,-404.55712871,0.00024657,6]
[346085554,1734695464667,-6293.53,0.00024657,6]
[346085555,1734695464676,-500.0,0.00024657,6]
[346085556,1734695464686,-1957.09,0.00024657,6]
[346085557,1734695464695,-500.0,0.00024657,6]
[346085558,1734695464705,-3441.37,0.00024657,6]
[346085559,1734695464714,-1705.94,0.00024657,6]
[346085560,1734695464724,-500.0,0.00024657,6]
[346085561,1734695464737,-1606.97,0.00024657,6]
[346085562,1734695464747,-500.0,0.00024657,6]
[346085563,1734695464756,-500.0,0.00024657,6]
[346085564,1734695464766,-524.56919763,0.00024657,6]
[346085565,1734695464775,-500.0,0.00024657,6]
[346085566,1734695464784,-500.0,0.00024657,6]
[346085567,1734695464794,-710.49,0.00024657,6]
[346085568,1734695464804,-500.0,0.00024657,6]
[346085569,1734695464814,-1045.23,0.00024657,6]
[346085570,1734695464823,-659.67,0.00024657,6]
[346085571,1734695464833,-10652.65,0.00024657,6]
[346085572,1734695464842,-500.0,0.00024657,6]
[346085573,1734695464851,-500.0,0.00024657,6]
[346085574,1734695464861,-500.0,0.00024657,6]
[346085575,1734695464870,-489.49584259,0.00024657,6]
[346085576,1734695464879,-2443.76,0.00024657,6]
[346085577,1734695464889,-564.57,0.00024657,6]
[346085578,1734695464899,-500.0,0.00024657,6]
[346085579,1734695464908,-178.0587287,0.00024657,6]
[346085580,1734695464917,-1659.22,0.00024657,6]
[346085581,1734695464927,-500.0,0.00024657,6]
[346085582,1734695464936,-2623.57,0.00024657,6]
[346085583,1734695464945,-500.0,0.00024657,6]
[346085584,1734695464955,-3774.55,0.00024657,6]
[346085585,1734695464964,-2715.88,0.00024657,2]
[346085586,1734695464973,-500.0,0.00024657,6]
[346085587,1734695464986,-500.0,0.00024657,6]
[346085588,1734695464996,-2144.16,0.00024657,6]
[346085589,1734695465006,-735.95,0.00024657,6]
[346085590,1734695465016,-500.0,0.00024657,6]
[346085591,1734695465026,-1503.77,0.00024657,6]
[346085592,1734695465035,-635.66,0.00024657,6]
[346085593,1734695465044,-1406.33,0.00024657,6]
[346085594,1734695465054,-1377.63,0.00024657,6]
[346085595,1734695465064,-1700.87,0.00024657,6]
[346085596,1734695465073,-648.56,0.00024657,6]
[346085597,1734695465083,-594.82,0.00024657,6]
[346085598,1734695465094,-679.09,0.00024657,6]
[346085599,1734695465107,-500.0,0.00024657,6]
[346085600,1734695465117,-1820.66,0.00024657,6]
[346085601,1734695465127,-500.0,0.00024657,6]
[346085602,1734695465137,-656.63,0.00024657,6]
[346085603,1734695465147,-500.0,0.00024657,6]
[346085604,1734695465156,-510.72,0.00024657,6]
[346085605,1734695465166,-500.0,0.00024657,6]
[346085606,1734695465176,-983.9,0.00024657,6]
[346085607,1734695465186,-3397.33,0.00024657,6]
[346085608,1734695465196,-557.8,0.00024657,6]
[346085609,1734695465209,-500.0,0.00024657,6]
[346085610,1734695465226,-500.0,0.00024657,6]
[346085611,1734695465240,-688.72,0.00024657,6]
[346085612,1734695465252,-500.0,0.00024657,6]
[346085613,1734695465262,-500.0,0.00024657,6]
[346085614,1734695465272,-870.15,0.00024657,6]
[346085615,1734695465282,-380.0,0.00024658,2]
[346085616,1734695465292,-709.5161692,0.00024658,2]
[346085617,1734695465302,-153.0,0.00024658,2]
[346085618,1734695465313,-153.2926313,0.00024658,2]
[346085619,1734695465324,-214.0101375,0.00024658,2]
[346085620,1734695465334,-153.2926313,0.00024658,2]
[346085621,1734695465344,-153.2926313,0.00024658,2]
[346085622,1734695465355,-214.0101375,0.00024658,2]
[346085623,1734695465366,-153.2926313,0.00024658,2]
[346085624,1734695465381,-153.2926313,0.00024658,2]
[346085625,1734695465391,-214.0101375,0.00024658,2]
[346085626,1734695465401,-153.2926313,0.00024658,2]
[346085627,1734695465411,-153.2926313,0.00024658,2]
[346085628,1734695465421,-153.2926313,0.00024658,2]
[346085629,1734695465432,-214.0101375,0.00024658,2]
[346085630,1734695465442,-153.2926313,0.00024658,2]
[346085631,1734695465451,-214.0101375,0.00024658,2]
[346085632,1734695465461,-262.9773439,0.00024658,2]
[346085633,1734695465471,-306.0,0.00024658,2]
[346085634,1734695465481,-153.596004,0.00024669,7]
[346085635,1734695465504,-151.0,0.00024669,7]
[346085636,1734695465514,-151.0,0.00024669,7]
[346085637,1734695465524,-151.0,0.00024669,7]
[346085638,1734695465533,-151.0,0.00024669,7]
[346085639,1734695465543,-151.0,0.00024669,7]
[346085640,1734695465552,-151.0,0.00024669,7]
[346085641,1734695465561,-151.0,0.00024669,7]
[346085642,1734695465571,-151.0,0.00024669,7]
[346085643,1734695465580,-151.0,0.00024669,7]
[346085644,1734695465590,-151.0,0.00024669,7]
[346085645,1734695465600,-151.0,0.00024669,7]
[346085646,1734695465610,-151.0,0.00024669,7]
[346085647,1734695465620,-151.0,0.00024669,7]
[346085648,1734695465629,-151.0,0.00024669,7]
[346085649,1734695465638,-151.0,0.00024669,7]
[346085650,1734695465648,-151.0,0.00024669,7]
[346085651,1734695465658,-151.0,0.00024669,7]
[346085652,1734695465667,-151.0,0.00024669,7]
[346085653,1734695465677,-151.0,0.00024669,7]
[346085654,1734695465686,-151.0,0.00024669,7]
[346085655,1734695465695,-256.294036,0.00024669,7]
[346085656,1734695465704,-151.0,0.00024669,7]
[346085657,1734695465713,-151.0,0.00024669,7]
[346085658,1734695465723,-151.0,0.00024669,7]
[346085659,1734695465736,-151.0,0.00024669,7]
[346085660,1734695465744,-151.0,0.00024669,7]
[346085661,1734695465754,-151.0,0.00024669,7]
[346085662,1734695465763,-249.391795,0.00024669,7]
[346085663,1734695465772,-454.560284,0.00024669,7]
[346085664,1734695465781,-454.560284,0.00024669,7]
[346085665,1734695465791,-454.560284,0.00024669,7]
[346085666,1734695465800,-454.560284,0.00024669,7]
[346085667,1734695465810,-454.560284,0.00024669,7]
[346085668,1734695465820,-454.560284,0.00024669,7]
[346085669,1734695465830,-454.560284,0.00024669,7]
[346085670,1734695465839,-454.560284,0.00024669,7]
[346085671,1734695465849,-454.560284,0.00024669,7]
[346085672,1734695465858,-454.560284,0.00024669,7]
[346085673,1734695465868,-454.560284,0.00024669,7]
[346085674,1734695465878,-454.560284,0.00024669,7]
[346085675,1734695465888,-454.560284,0.00024669,7]
[346085676,1734695465898,-454.560284,0.00024669,7]
[346085677,1734695465907,-454.560284,0.00024669,7]
[346085678,1734695465918,-454.560284,0.00024669,7]
[346085679,1734695465928,-454.560284,0.00024669,7]
[346085680,1734695465937,-454.560284,0.00024669,7]
[346085681,1734695465947,-454.560284,0.00024669,7]
[346085682,1734695465957,-454.560288,0.00024669,7]
[346085683,1734695465967,-151.0,0.00024669,7]
[346085684,1734695465976,-151.0,0.00024669,7]
[346085685,1734695465988,-151.0,0.00024669,7]
[346085686,1734695465998,-151.0,0.00024669,7]
[346085687,1734695466007,-151.0,0.00024669,7]
[346085688,1734695466018,-151.0,0.00024669,7]
[346085689,1734695466028,-153.289708,0.00024669,7]
[346085690,1734695466037,-2243.634203,0.00024669,7]
[346085691,1734695466047,-2243.634203,0.00024669,7]
[346085692,1734695466056,-2243.634203,0.00024669,7]
[346085693,1734695466066,-2243.634203,0.00024669,7]
[346085694,1734695466076,-2243.634203,0.00024669,7]
[346085695,1734695466085,-2243.634203,0.00024669,7]
[346085696,1734695466094,-2243.634203,0.00024669,7]
[346085697,1734695466104,-2243.634203,0.00024669,7]
[346085698,1734695466113,-2243.634203,0.00024669,7]
[346085699,1734695466122,-2243.634203,0.00024669,7]
[346085700,1734695466132,-2243.634203,0.00024669,7]
[346085701,1734695466141,-2243.634203,0.00024669,7]
[346085702,1734695466152,-2243.634203,0.00024669,7]
[346085703,1734695466161,-151.0,0.00024669,7]
[346085704,1734695466170,-2243.634203,0.00024669,7]
[346085705,1734695466180,-2243.634203,0.00024669,7]
[346085706,1734695466191,-151.0,0.00024669,7]
[346085707,1734695466203,-2243.634203,0.00024669,7]
[346085708,1734695466212,-151.0,0.00024669,7]
[346085709,1734695466221,-151.0,0.00024669,7]
[346085710,1734695466231,-151.0,0.00024669,7]
[346085711,1734695466242,-2243.634203,0.00024669,7]
[346085712,1734695466252,-151.0,0.00024669,7]
[346085713,1734695466262,-2243.634203,0.00024669,7]
[346085714,1734695466271,-151.0,0.00024669,7]
[346085715,1734695466282,-2243.634203,0.00024669,7]
[346085716,1734695466291,-151.0,0.00024669,7]
[346085717,1734695466302,-2243.634198,0.00024669,7]
[346085718,1734695466311,-151.0,0.00024669,7]
[346085719,1734695466321,-151.0,0.00024669,7]
[346085720,1734695466330,-151.0,0.00024669,7]
[346085721,1734695466341,-151.0,0.00024669,7]
[346085722,1734695466352,-151.0,0.00024669,7]
[346085723,1734695466362,-151.0,0.00024669,7]
[346085724,1734695466371,-151.0,0.00024669,7]
[346085725,1734695466380,-151.0,0.00024669,7]
[346085726,1734695466390,-151.0,0.00024669,7]
[346085727,1734695466400,-151.0,0.00024669,7]
[346085728,1734695466409,-151.0,0.00024669,7]
[346085729,1734695466418,-151.0,0.00024669,7]
[346085730,1734695466427,-151.0,0.00024669,7]
[346085731,1734695466437,-151.0,0.00024669,7]
[346085732,1734695466447,-151.0,0.00024669,7]
[346085733,1734695466456,-151.0,0.00024669,7]
[346085734,1734695466466,-151.0,0.00024669,7]
[346085735,1734695466475,-151.0,0.00024669,7]
[346085736,1734695466486,-153.123734,0.00024669,7]